bitfinex/quotes_SOLUSD_20241115
["timestamp","ask_amount","ask_price","bid_price","bid_amount"]
[1731694560991,0.09367462,210.27,210.18,16.6523]
[1731694561298,24.12153862,210.27,210.18,40.51446672]
[1731694561600,15.2126,210.3,210.19,23.86216672]
[1731694561802,3.328,210.34,210.23,23.86216672]
[1731694562104,0.09367462,210.33,210.21,23.86216672]
[1731694562277,0.09367462,210.33,210.22,23.86216672]
[1731694562483,0.09367462,210.33,210.21,23.86216672]
[1731694562797,0.09367462,210.33,210.23,23.86216672]
[1731694563106,20.12549,210.32,210.24,16.6475]
[1731694563283,20.0,210.32,210.24,16.6475]
[1731694563628,15.5838,210.35,210.26,23.86216672]
[1731694563784,0.09367462,210.34,210.26,23.86216672]
[1731694563991,15.5838,210.35,210.24,16.6475]
[1731694563992,15.5838,210.35,210.27,23.86216672]
[1731694564188,16.1773,210.4,210.3,23.86216672]
[1731694564392,145.5,210.47,210.34,23.86216672]
[1731694564606,0.09367462,210.46,210.33,23.86216672]
[1731694564984,145.5,210.47,210.33,23.86216672]
[1731694565204,3.3261,210.46,210.34,16.6397]
[1731694565586,0.09367462,210.45,210.34,16.6397]
[1731694565904,16.1773,210.48,210.36,23.86216672]
[1731694566114,19.503,210.48,210.35,23.86216672]
[1731694566288,19.503,210.48,210.34,16.6397]
[1731694566289,0.09367462,210.47,210.34,40.50186672]
[1731694566493,19.503,210.48,210.35,23.86216672]
[1731694566688,16.1773,210.48,210.38,23.86216672]
[1731694566880,16.1773,210.48,210.36,23.86216672]
[1731694567088,0.09367462,210.49,210.37,23.86216672]
[1731694567308,0.09367462,210.49,210.38,16.6365]
[1731694567512,3.41927462,210.49,210.38,16.6365]
[1731694568013,3.41927462,210.49,210.34,4.7542]
[1731694568202,20.09367462,210.45,210.28,16.6443]
[1731694568502,20.09367462,210.45,210.28,11.8888]
[1731694568503,20.09367462,210.41,210.28,11.8888]
[1731694568703,0.09367462,210.39,210.28,11.8888]
[1731694569006,24.027864,210.36,210.28,11.8888]
[1731694569312,0.12549,210.32,210.23,11.8913]
[1731694569510,20.0,210.33,210.24,23.86216672]
[1731694569809,44.027864,210.39,210.25,23.86216672]
[1731694570002,44.027864,210.39,210.24,23.86216672]
[1731694570507,0.09367462,210.38,210.25,23.86216672]
[1731694570811,0.09367462,210.38,210.24,23.86216672]
[1731694570999,0.09367462,210.38,210.26,11.89]
[1731694571000,0.25098,210.35,210.26,11.89]
[1731694571201,0.09367462,210.34,210.26,11.89]
[1731694571585,0.12549,210.31,210.26,11.89]
[1731694571793,0.12549,210.33,210.26,11.89]
[1731694572092,0.25098,210.33,210.26,11.89]
[1731694572294,3.57918,210.33,210.26,11.89]
[1731694572683,20.12549,210.31,210.26,11.89]
[1731694572895,0.21916462,210.29,210.18,4.7577]
[1731694573110,0.12549,210.26,210.18,4.7577]
[1731694573407,24.027864,210.26,210.18,4.7577]
[1731694573581,20.0,210.25,210.18,4.7577]
[1731694573787,0.12549,210.24,210.17,11.8951]
[1731694574111,0.12549,210.24,210.13,6.1893]
[1731694574112,0.12549,210.22,210.13,6.1893]
[1731694574314,0.25098,210.22,210.13,4.7588]
[1731694574604,0.25098,210.22,210.13,16.6561]
[1731694575187,145.5,210.29,210.14,23.86216672]
[1731694575188,27.356964,210.27,210.14,23.86216672]
[1731694575382,20.0,210.28,210.14,23.86216672]
[1731694575383,145.5,210.29,210.16,23.86216672]
[1731694575582,23.776884,210.3,210.17,23.86216672]
[1731694575801,23.3281,210.33,210.15,23.86216672]
[1731694575802,20.09367462,210.27,210.15,23.86216672]
[1731694575982,20.09367462,210.27,210.13,64.31296672]
[1731694576187,23.42277462,210.27,210.13,64.31296672]
[1731694576407,23.776884,210.26,210.13,16.6561]
[1731694576588,20.09367462,210.23,210.13,16.6561]
[1731694576793,0.25098,210.22,210.13,16.6561]
[1731694577807,47.356664,210.28,210.14,23.86216672]
[1731694577993,47.356664,210.28,210.16,23.86216672]
[1731694578193,0.09367462,210.27,210.16,23.86216672]
[1731694578401,0.09367462,210.27,210.15,23.86216672]
[1731694578695,0.09367462,210.27,210.13,35.75946672]
[1731694578892,0.09367462,210.27,210.13,11.8973]
[1731694579504,0.09367462,210.27,210.14,23.86216672]
[1731694580107,0.12549,210.23,210.16,23.86216672]
[1731694580904,0.12549,210.23,210.17,23.86216672]
[1731694581110,0.12549,210.23,210.16,23.86216672]
[1731694581411,24.027864,210.21,210.15,11.8962]
[1731694582005,24.027864,210.23,210.15,11.8962]
[1731694582205,20.0,210.22,210.16,23.86216672]
[1731694582520,0.25098,210.21,210.15,11.8962]
[1731694583116,0.09367462,210.22,210.15,11.8962]
[1731694583297,0.25098,210.21,210.15,11.8962]
[1731694583609,20.0,210.2,210.13,4.7588]
[1731694583912,24.027864,210.19,210.11,4.7592]
[1731694584596,3.42347462,210.22,210.12,23.86216672]
[1731694584797,24.027864,210.21,210.13,23.86216672]
[1731694585004,20.0,210.22,210.15,23.86216672]
[1731694585511,0.12549,210.22,210.17,23.86216672]
[1731694585715,24.027864,210.23,210.17,23.86216672]
[1731694586717,3.3291,210.27,210.19,23.86216672]
[1731694587098,0.09367462,210.28,210.2,23.86216672]
[1731694587298,26.4666,210.29,210.16,16.6538]
[1731694587299,6.42,210.34,210.24,23.86216672]
[1731694587503,3.3282,210.33,210.25,23.86216672]
[1731694587708,0.09367462,210.32,210.25,28.61826672]
[1731694588111,3.3282,210.33,210.25,28.61826672]
[1731694588313,3.3282,210.33,210.25,40.50886672]
[1731694588516,9.7479,210.34,210.25,40.50886672]
[1731694588894,9.7479,210.34,210.26,23.86216672]
[1731694589295,20.0,210.33,210.25,40.50886672]
[1731694589490,20.0,210.33,210.25,23.86216672]
[1731694589696,24.12153862,210.32,210.19,40.51376672]
[1731694589895,24.12153862,210.32,210.2,23.86216672]
[1731694589896,20.0,210.29,210.2,23.86216672]
[1731694590109,0.12549,210.28,210.2,23.86216672]
[1731694591009,0.12549,210.28,210.21,4.7571]
[1731694591208,0.12549,210.26,210.19,16.6515]
[1731694591400,0.12549,210.26,210.19,40.51366672]
[1731694591600,0.12549,210.26,210.19,16.6515]
[1731694592314,20.0,210.27,210.19,35.75616672]
[1731694592510,20.12549,210.28,210.2,23.86216672]
[1731694592694,20.12549,210.28,210.19,35.75616672]
[1731694593209,0.12549,210.27,210.19,35.75616672]
[1731694593402,20.0,210.26,210.2,23.86216672]
[1731694593588,20.0,210.26,210.21,23.86216672]
[1731694593796,0.09367462,210.29,210.2,23.86216672]
[1731694594117,24.027864,210.27,210.19,11.894]
[1731694594315,23.902374,210.25,210.19,11.894]
[1731694594516,23.902374,210.25,210.19,35.75616672]
[1731694595314,0.09367462,210.22,210.12,4.7591]
[1731694595615,0.09367462,210.22,210.13,23.86216672]
[1731694595808,44.027864,210.23,210.15,23.86216672]
[1731694596001,44.027864,210.23,210.13,23.86216672]
[1731694596517,23.902374,210.19,210.12,11.8979]
[1731694597328,23.902374,210.19,210.12,16.6569]
[1731694598512,20.0,210.2,210.12,16.6569]
[1731694598718,20.0,210.23,210.14,23.86216672]
[1731694598908,20.0,210.23,210.12,16.6569]
[1731694598909,24.027864,210.23,210.15,23.86216672]
[1731694600017,24.027864,210.23,210.16,23.86216672]
[1731694600220,20.0,210.22,210.14,23.86216672]
[1731694600598,24.027864,210.23,210.15,23.86216672]
[1731694601099,0.09367462,210.22,210.12,11.8979]
[1731694601800,23.776884,210.21,210.14,23.86216672]
[1731694602001,23.776884,210.21,210.12,11.8979]
[1731694602002,20.12549,210.2,210.12,11.8979]
[1731694602215,23.776884,210.19,210.12,11.8979]
[1731694602515,20.0,210.18,210.12,11.8979]
[1731694602701,23.776884,210.19,210.12,11.8979]
[1731694603123,20.0,210.18,210.12,11.8979]
[1731694603628,20.0,210.18,210.13,23.86216672]
[1731694603810,23.902374,210.21,210.13,23.86216672]
[1731694604009,20.0,210.2,210.12,40.51916672]
[1731694604228,24.027864,210.19,210.12,16.657]
[1731694604418,24.12153862,210.17,210.08,16.66]
[1731694605706,20.0,210.14,210.08,11.9002]
[1731694605899,23.902374,210.11,210.04,16.6631]
[1731694607221,0.12549,210.08,210.02,0.4559771]
[1731694607920,23.902374,210.09,210.02,0.4559771]
[1731694608112,23.902374,210.09,210.02,5.2172771]
[1731694609026,23.902374,210.09,210.02,40.98304382]
[1731694609526,20.0,210.1,210.02,40.98304382]
[1731694609729,0.12549,210.11,210.03,23.86216672]
[1731694609898,23.902374,210.1,210.03,23.86216672]
[1731694610105,20.0,210.09,210.03,23.86216672]
[1731694610320,23.902374,210.1,210.03,23.86216672]
[1731694610622,20.0,210.13,210.06,23.86216672]
[1731694610800,24.027864,210.13,210.06,23.86216672]
[1731694611002,15.3144,210.14,210.08,23.86216672]
[1731694611202,164.4858,210.18,210.09,23.86216672]
[1731694611506,0.09367462,210.17,210.09,23.86216672]
[1731694611708,15.6553,210.18,210.11,23.86216672]
[1731694612320,3.3299,210.22,210.12,23.86216672]
[1731694612711,3.3299,210.22,210.13,23.86216672]
[1731694612913,16.1353,210.23,210.14,23.86216672]
[1731694613806,16.1353,210.23,210.15,4.7585]
[1731694614125,3.3295,210.24,210.15,16.6547]
[1731694614326,24.027864,210.23,210.15,16.6547]
[1731694614630,23.776884,210.21,210.15,16.6547]
[1731694615121,24.027864,210.21,210.1,47.65976672]
[1731694615327,23.902374,210.21,210.12,23.86216672]
[1731694616322,23.902374,210.21,210.13,16.6562]
[1731694616506,20.0,210.2,210.13,16.6562]
[1731694617208,0.12549,210.21,210.13,16.6562]
[1731694617535,23.776884,210.22,210.13,16.6562]
[1731694617822,23.776884,210.24,210.17,23.86216672]
[1731694618015,23.776884,210.26,210.18,23.86216672]
[1731694618210,161.9142,210.29,210.17,23.86216672]
[1731694618211,19.743,210.29,210.17,23.86216672]
[1731694618527,0.09367462,210.28,210.18,16.6523]
[1731694619319,0.12549,210.27,210.18,16.6523]
[1731694619644,20.0,210.25,210.18,16.6523]
[1731694619930,23.776884,210.24,210.18,16.6523]
[1731694620626,20.0,210.28,210.19,23.86216672]
[1731694621015,0.09367462,210.27,210.18,16.6523]
[1731694621715,20.0,210.28,210.19,23.86216672]
[1731694621911,3.3283,210.32,210.22,23.86216672]
[1731694622125,23.902374,210.31,210.19,23.86216672]
[1731694622332,23.902374,210.31,210.22,23.86216672]
[1731694622720,23.902374,210.31,210.23,16.6483]
[1731694623311,0.12549,210.3,210.23,16.6483]
[1731694624032,23.776884,210.29,210.23,16.6483]
[1731694624236,23.776884,210.27,210.23,11.8917]
[1731694624728,23.776884,210.25,210.14,23.86216672]
[1731694624919,0.12549,210.2,210.15,11.896]
[1731694625114,20.0,210.2,210.13,23.86216672]
[1731694625516,20.0,210.2,210.12,23.86216672]
[1731694625823,23.902374,210.22,210.11,23.86216672]
[1731694626133,23.776884,210.2,210.12,16.657]
[1731694626315,23.776884,210.2,210.12,40.51916672]
[1731694627430,23.776884,210.18,210.12,16.657]
[1731694628333,0.12549,210.17,210.12,11.8979]
[1731694628915,23.776884,210.18,210.12,11.8979]
[1731694629116,23.776884,210.18,210.12,16.657]
[1731694629436,23.776884,210.16,210.12,11.8979]
[1731694629735,20.0,210.18,210.12,16.657]
[1731694629946,23.776884,210.17,210.12,16.657]
[1731694630117,23.776884,210.17,210.12,11.8979]
[1731694630316,20.0,210.16,210.12,11.8979]
[1731694630520,23.776884,210.15,210.12,11.8979]
[1731694632433,23.776884,210.15,210.09,4.7598]
[1731694632634,23.776884,210.13,210.09,4.7598]
[1731694632944,20.12549,210.1,210.08,0.09367462]
[1731694633240,23.776884,210.09,210.08,0.09367462]
[1731694633431,20.0,210.1,210.08,0.09367462]
[1731694633622,23.3313,210.13,210.08,0.09367462]
[1731694633930,23.776884,210.1,210.03,23.86216672]
[1731694634240,23.776884,210.12,210.06,23.86216672]
[1731694634539,24.027864,210.16,210.08,23.86216672]
[1731694635038,0.09367462,210.15,210.05,23.86216672]
[1731694635225,24.027864,210.16,210.06,23.86216672]
[1731694635426,24.027864,210.16,210.07,4.7603]
[1731694635614,15.1038,210.19,210.11,23.86216672]
[1731694635816,3.3301,210.21,210.12,23.86216672]
[1731694636111,0.09367462,210.2,210.1,23.86216672]
[1731694636332,3.3301,210.21,210.09,23.86216672]
[1731694636529,3.3301,210.21,210.11,23.86216672]
[1731694636734,3.3296,210.23,210.12,16.657]
[1731694637013,23.99604862,210.22,210.12,16.657]
[1731694637437,23.99604862,210.22,210.12,40.51916672]
[1731694637640,15.8449,210.24,210.16,23.86216672]
[1731694637838,15.8449,210.24,210.17,23.86216672]
[1731694638038,15.8449,210.24,210.12,40.4529]
[1731694638039,19.1744,210.24,210.12,40.51916672]
[1731694638345,19.1744,210.24,210.14,23.86216672]
[1731694638512,15.8449,210.24,210.12,16.657]
[1731694638830,15.8449,210.24,210.16,40.51596672]
[1731694639136,23.776884,210.23,210.16,16.6538]
[1731694639530,23.776884,210.23,210.16,40.51596672]
[1731694640432,3.3289,210.28,210.16,40.51596672]
[1731694640629,161.3757,210.29,210.2,23.86216672]
[1731694640824,0.09367462,210.28,210.18,23.86216672]
[1731694641122,0.09367462,210.28,210.17,23.86216672]
[1731694641523,0.09367462,210.28,210.18,23.86216672]
[1731694641718,0.12549,210.27,210.18,23.86216672]
[1731694641918,0.12549,210.27,210.19,16.6516]
[1731694642119,0.12549,210.27,210.19,40.51376672]
[1731694642315,0.12549,210.27,210.2,23.86216672]
[1731694642848,23.776884,210.3,210.22,23.86216672]
[1731694643025,23.776884,210.3,210.19,16.6516]
[1731694643026,0.12549,210.29,210.2,23.86216672]
[1731694643226,0.12549,210.29,210.21,23.86216672]
[1731694643930,23.776884,210.28,210.22,16.6492]
[1731694644415,23.776884,210.26,210.22,11.8923]
[1731694644618,23.776884,210.26,210.18,40.51436672]
[1731694644819,0.12549,210.3,210.21,23.86216672]
[1731694645042,15.9565,210.34,210.24,23.86216672]
[1731694645230,19.7599,210.34,210.24,23.86216672]
[1731694645839,15.9565,210.34,210.25,16.6468]
[1731694646169,15.9565,210.34,210.25,40.50896672]
[1731694646444,43.902374,210.33,210.25,40.50896672]
[1731694646928,43.902374,210.33,210.25,31.57400856]
[1731694647545,43.902374,210.33,210.25,16.6468]
[1731694647751,0.25098,210.31,210.25,11.8906]
[1731694648044,0.25098,210.31,210.21,11.8928]
[1731694648045,23.99604862,210.28,210.21,11.8928]
[1731694648244,23.902374,210.26,210.21,16.6499]
[1731694649052,0.12549,210.26,210.21,11.8928]
[1731694649354,23.902374,210.26,210.21,16.6499]
[1731694649520,20.0,210.27,210.21,16.6499]
[1731694649720,15.9565,210.34,210.24,14.92720856]
[1731694649926,15.9565,210.34,210.26,16.646]
[1731694650242,15.9565,210.34,210.26,31.57320856]
[1731694650439,15.9565,210.34,210.26,16.646]
[1731694650648,15.9565,210.34,210.26,31.57320856]
[1731694651046,15.9565,210.34,210.26,16.646]
[1731694651353,15.9565,210.34,210.26,31.57320856]
[1731694651552,0.09367462,210.36,210.27,14.92720856]
[1731694651731,19.4823,210.39,210.29,14.92720856]
[1731694651937,19.4823,210.39,210.31,16.642]
[1731694652138,19.4823,210.39,210.31,31.56920856]
[1731694652642,19.4823,210.39,210.31,16.642]
[1731694653157,20.0,210.38,210.31,16.642]
[1731694653361,20.0,210.38,210.31,11.8872]
[1731694653934,20.0,210.36,210.31,11.8872]
[1731694654134,23.902374,210.35,210.31,11.8872]
[1731694654428,23.776884,210.38,210.31,35.76106542]
[1731694654633,23.776884,210.38,210.33,23.87386542]
[1731694655050,15.9124,210.44,210.35,23.87386542]
[1731694655358,9.5008,210.51,210.39,23.87386542]
[1731694655359,19.713,210.49,210.39,23.87386542]
[1731694655545,19.713,210.49,210.4,16.6349]
[1731694656059,15.9124,210.49,210.42,23.87386542]
[1731694656357,9.8808,210.51,210.41,23.87386542]
[1731694656961,3.8003,210.51,210.42,23.87386542]
[1731694657262,20.2665,210.53,210.42,23.87386542]
[1731694657847,24.027864,210.52,210.42,23.87386542]
[1731694658263,24.027864,210.52,210.43,4.7521]
[1731694658561,20.0,210.49,210.43,4.7521]
[1731694658765,0.12549,210.5,210.43,16.6325]
[1731694658944,20.0,210.51,210.43,40.50636542]
[1731694659263,0.12549,210.52,210.43,40.50636542]
[1731694659554,0.12549,210.52,210.44,23.87386542]
[1731694659760,23.902374,210.52,210.45,23.87386542]
[1731694659960,23.776884,210.52,210.45,23.87386542]
[1731694660163,23.776884,210.53,210.46,4.7514]
[1731694660468,23.776884,210.51,210.46,40.50396542]
[1731694660641,19.8841,210.58,210.47,23.87386542]
[1731694660838,0.09367462,210.57,210.46,40.50396542]
[1731694661246,0.09367462,210.57,210.47,23.87386542]
[1731694661564,0.09367462,210.57,210.46,40.50396542]
[1731694661866,20.12549,210.56,210.47,23.87386542]
[1731694662063,20.0,210.54,210.47,23.87386542]
[1731694662239,20.0,210.54,210.46,40.50396542]
[1731694662641,23.776884,210.53,210.46,16.6301]
[1731694663165,23.902374,210.53,210.46,16.6301]
[1731694663679,23.776884,210.49,210.42,4.7522]
[1731694663845,23.776884,210.49,210.41,11.8811]
[1731694663846,20.0,210.48,210.41,11.8811]
[1731694664163,20.12549,210.46,210.41,11.8811]
[1731694664335,23.776884,210.43,210.37,4.7533]
[1731694665368,20.0,210.42,210.32,40.51506542]
[1731694665536,20.0,210.42,210.32,16.6412]
[1731694665740,20.0,210.42,210.34,23.87386542]
[1731694666742,20.0,210.42,210.32,40.51506542]
[1731694667270,24.027864,210.41,210.32,16.6412]
[1731694667448,27.830064,210.41,210.32,16.6412]
[1731694668549,23.902374,210.41,210.32,16.6412]
[1731694669067,23.776884,210.39,210.32,16.6412]
[1731694670554,23.776884,210.39,210.32,11.8866]
[1731694670752,20.25098,210.36,210.28,16.6442]
[1731694671066,23.776884,210.33,210.28,16.6442]
[1731694671268,20.0,210.34,210.28,16.6442]
[1731694671767,23.776884,210.34,210.28,16.6442]
[1731694672357,15.6345,210.38,210.28,40.51806542]
[1731694672558,20.0,210.37,210.29,23.87386542]
[1731694672744,20.0,210.35,210.28,16.6442]
[1731694674264,23.776884,210.37,210.28,40.51806542]
[1731694674471,23.776884,210.35,210.28,16.6442]
[1731694674972,20.12549,210.34,210.28,16.6442]
[1731694675169,23.776884,210.33,210.28,11.8888]
[1731694675551,23.776884,210.33,210.28,16.6443]
[1731694676576,20.0,210.32,210.23,16.6483]
[1731694677253,23.776884,210.31,210.23,16.6483]
[1731694679170,20.0,210.3,210.23,16.6483]
[1731694679565,20.0,210.3,210.23,31.57970436]
[1731694681474,0.09367462,210.37,210.27,11.8893]
[1731694681980,20.0,210.35,210.27,35.76759282]
[1731694682146,15.6345,210.38,210.31,23.87829282]
[1731694682466,15.6345,210.38,210.3,23.87829282]
[1731694682650,21.1596,210.43,210.32,23.87829282]
[1731694682851,24.9614,210.43,210.31,23.87829282]
[1731694683061,0.09367462,210.42,210.28,23.87829282]
[1731694683252,0.09367462,210.42,210.27,35.76759282]
[1731694683466,0.09367462,210.4,210.27,35.76759282]
[1731694683861,24.12153862,210.4,210.27,35.76759282]
[1731694684057,0.09367462,210.38,210.27,35.76759282]
[1731694684254,0.09367462,210.38,210.27,16.645]
[1731694684255,23.776884,210.34,210.27,16.645]
[1731694684875,23.776884,210.32,210.27,11.8893]
[1731694685062,3.8022,210.4,210.3,23.87829282]
[1731694685369,0.09367462,210.39,210.28,23.87829282]
[1731694686483,20.0,210.36,210.29,16.6436]
[1731694686677,20.0,210.36,210.29,40.52189282]
[1731694686854,20.0,210.36,210.31,23.87829282]
[1731694687051,0.25098,210.39,210.31,23.87829282]
[1731694687254,0.25098,210.39,210.32,23.87829282]
[1731694687478,0.25098,210.39,210.31,23.87829282]
[1731694687669,4.05338,210.39,210.3,35.76599282]
[1731694687864,7.35386778,210.48,210.37,23.87829282]
[1731694688074,3.8009,210.48,210.39,23.87829282]
[1731694689285,24.027864,210.47,210.4,4.7528]
[1731694689472,20.0,210.44,210.4,4.7528]
[1731694689786,6.5174,210.5,210.4,4.7528]
[1731694689966,10.3179,210.5,210.41,23.87829282]
[1731694690159,10.3179,210.5,210.4,16.6349]
[1731694690482,6.5174,210.5,210.41,23.87829282]
[1731694691361,0.09367462,210.48,210.4,11.8821]
[1731694691563,20.09367462,210.48,210.4,11.8821]
[1731694691763,20.0,210.46,210.4,16.6349]
[1731694692054,20.0,210.44,210.4,16.6349]
[1731694692480,23.776884,210.43,210.4,11.8821]
[1731694693390,23.776884,210.41,210.34,4.7542]
[1731694694289,23.776884,210.41,210.34,23.87829282]
[1731694694490,23.776884,210.41,210.34,35.76379282]
[1731694694886,23.776884,210.41,210.35,23.87829282]
[1731694695080,0.12549,210.45,210.37,23.87829282]
[1731694695278,20.0,210.44,210.4,23.87829282]
[1731694695580,15.9635,210.49,210.42,23.87829282]
[1731694695778,15.9635,210.49,210.43,23.87829282]
[1731694696494,15.9635,210.49,210.44,4.7519]
[1731694697085,23.902374,210.48,210.44,4.7519]
[1731694697585,16.6521,210.54,210.46,23.87829282]
[1731694697785,9.4967,210.6,210.44,16.6317]
[1731694697786,3.799,210.58,210.47,23.87829282]
[1731694697980,3.799,210.58,210.46,23.87829282]
[1731694698381,0.09367462,210.57,210.46,23.87829282]
[1731694698709,3.89297462,210.57,210.47,16.6293]
[1731694699479,0.09367462,210.55,210.47,16.6293]
[1731694699686,20.09367462,210.55,210.47,16.6293]
[1731694699875,24.027864,210.54,210.47,16.6293]
[1731694700074,23.902374,210.52,210.47,16.6293]
[1731694701896,23.902374,210.52,210.45,4.7515]
[1731694701897,23.902374,210.5,210.45,4.7515]
[1731694702085,23.776884,210.48,210.43,16.6322]
[1731694702297,20.0,210.47,210.43,16.6322]
[1731694702589,20.0,210.47,210.39,16.6356]
[1731694702590,23.776884,210.46,210.39,16.6356]
[1731694703708,20.0,210.45,210.39,16.6356]
[1731694703874,19.5,210.45,210.39,16.6356]
[1731694704070,23.902374,210.44,210.39,11.8826]
[1731694705768,23.902374,210.44,210.36,4.7537]
[1731694705769,20.0,210.43,210.36,4.7537]
[1731694706083,23.902374,210.42,210.36,4.7537]
[1731694706479,20.0,210.41,210.32,23.7732]
[1731694706878,23.902374,210.4,210.31,16.642]
[1731694707074,20.12549,210.37,210.31,11.8872]
[1731694707376,23.902374,210.32,210.27,11.8894]
[1731694707580,20.0,210.31,210.27,11.8894]
[1731694707887,20.0,210.31,210.26,4.7558]
[1731694707888,20.0,210.25,210.21,11.8925]
[1731694708092,20.0,210.25,210.16,16.6534]
[1731694708093,20.0,210.23,210.16,16.6534]
[1731694708294,23.902374,210.22,210.16,16.6534]
[1731694708592,23.902374,210.22,210.11,16.6579]
[1731694708776,23.902374,210.18,210.11,16.6579]
[1731694708974,0.12549,210.16,210.11,11.8985]
[1731694709183,143.7,210.26,210.02,16.3660771]
[1731694709184,23.776884,210.12,210.06,11.9013]
[1731694709386,0.25098,210.11,210.03,4.7612]
[1731694709585,20.12549,210.11,210.03,4.7612]
[1731694709781,23.776884,210.1,210.03,4.7612]
[1731694709996,23.776884,210.1,210.02,0.4559771]
[1731694709997,0.25098,210.09,210.02,0.4559771]
[1731694710200,23.99604862,210.06,210.02,0.4559771]
[1731694710401,23.902374,210.02,209.94,2.0]
[1731694710593,0.12549,209.99,209.94,2.0]
[1731694710913,0.25098,209.99,209.94,2.0]
[1731694711101,0.12549,209.99,209.94,2.0]
[1731694711306,0.12549,210.0,209.94,2.0]
[1731694713601,23.902374,210.03,209.94,2.0]
[1731694713786,0.12549,210.02,209.95,16.6705]
[1731694713989,23.902374,210.01,209.95,16.6705]
[1731694714415,18.01609893,210.01,209.95,16.6705]
[1731694714997,0.12549,210.02,209.95,16.6705]
[1731694716814,20.12549,210.0,209.95,11.9075]
[1731694717113,20.0,210.0,209.95,16.6705]
[1731694717294,147.5081,210.08,209.95,16.6705]
[1731694717503,20.0,210.04,209.95,16.6705]
[1731694718619,24.027864,210.03,209.95,16.6705]
[1731694718821,0.25098,210.07,209.95,16.6705]
[1731694718992,24.027864,210.05,209.95,40.5314055]
[1731694719194,24.027864,210.05,209.95,16.6705]
[1731694719195,0.25098,210.05,209.95,16.6705]
[1731694719920,0.34465462,210.07,209.95,16.6705]
[1731694720417,24.12153862,210.07,209.95,16.6705]
[1731694720595,20.0,210.04,209.95,16.6705]
[1731694721411,0.25098,210.05,209.95,16.6705]
[1731694721612,20.0,210.04,209.95,16.6705]
[1731694722198,0.25098,210.05,209.95,16.6705]
[1731694722620,20.0,210.04,209.95,16.6705]
[1731694722996,143.7,210.15,209.97,23.8609055]
[1731694723201,143.7,210.15,210.0,23.8609055]
[1731694723202,3.8072,210.13,210.0,23.8609055]
[1731694723510,0.09367462,210.12,209.99,23.8609055]
[1731694724219,0.09367462,210.12,210.01,16.6657]
[1731694724400,0.21916462,210.12,210.01,16.6657]
[1731694725023,7.2742594,210.15,210.05,23.8609055]
[1731694725226,3.8055,210.22,210.07,23.8609055]
[1731694725400,147.5055,210.22,210.06,23.8609055]
[1731694725725,12.51807373,210.21,210.03,23.8609055]
[1731694726099,0.09367462,210.19,210.04,16.6633]
[1731694726307,0.09367462,210.19,210.04,40.5242055]
[1731694726506,0.21916462,210.19,210.04,16.6633]
[1731694727421,0.31916462,210.17,210.04,11.9024]
[1731694727632,0.09367462,210.13,210.04,11.9024]
[1731694727920,23.99604862,210.11,210.04,11.9024]
[1731694728131,0.12549,210.09,210.04,16.6633]
[1731694728611,23.902374,210.07,210.0,23.1988]
[1731694728809,20.12549,210.08,210.0,23.1988]
[1731694729114,0.25098,210.13,210.01,23.8609055]
[1731694729426,0.25098,210.11,210.0,23.1988]
[1731694729805,0.09367462,210.1,210.0,23.1988]
[1731694730327,0.09367462,210.1,209.95,47.6760055]
[1731694730328,0.12549,210.07,209.96,4.7626]
[1731694730501,0.09367462,210.04,209.96,4.7626]
[1731694730698,0.12549,210.02,209.96,4.7626]
[1731694730902,0.12549,210.02,209.99,74.26297562]
[1731694731307,0.12549,210.0,209.95,11.9072]
[1731694731506,0.25098,210.0,209.95,11.9072]
[1731694737109,0.12549,210.0,209.95,16.6702]
[1731694738124,0.12549,210.0,209.94,2.0]
[1731694738325,3.93499,210.0,209.94,2.0]
[1731694738928,23.99604862,209.99,209.94,2.0]
[1731694739127,20.25098,209.98,209.94,2.0]